bitfinex/quotes_BTCUSD_20250101
["timestamp","ask_amount","ask_price","bid_price","bid_amount"]
[1735716021926,0.24046789,93896.0,93890.0,0.0755]
[1735716022788,8.52e-05,93897.0,93890.0,0.0755]
[1735716024098,8.52e-05,93897.0,93890.0,0.0775]
[1735716028889,0.213001,93896.0,93890.0,0.0775]
[1735716029716,0.213001,93896.0,93890.0,0.0755]
[1735716030128,0.213001,93896.0,93890.0,0.0785]
[1735716031090,0.2130862,93896.0,93890.0,0.0785]
[1735716031756,0.01016802,93895.0,93890.0,0.0785]
[1735716031982,0.35901754,93898.0,93890.0,0.0785]
[1735716032198,0.00847321,93894.0,93890.0,0.0785]
[1735716032419,0.24046789,93898.0,93890.0,0.0785]
[1735716032638,0.00847306,93893.0,93890.0,0.0785]
[1735716032867,0.213001,93896.0,93890.0,0.0785]
[1735716033075,0.00816392,93892.0,93890.0,0.0755]
[1735716033310,0.00847278,93891.0,93890.0,0.0775]
[1735716033435,0.00847278,93891.0,93890.0,0.0755]
[1735716034089,0.00847278,93891.0,93890.0,0.0795]
[1735716034752,0.00847278,93891.0,93890.0,0.0805]
[1735716035907,0.00847278,93891.0,93890.0,0.0765]
[1735716036334,0.00847278,93891.0,93890.0,0.0815]
[1735716038850,0.21834467,93896.0,93890.0,0.0815]
[1735716039275,0.00706032,93895.0,93890.0,0.0815]
[1735716040117,0.00706032,93895.0,93890.0,0.0765]
[1735716040360,0.00706032,93895.0,93890.0,0.0755]
[1735716040581,0.00706032,93895.0,93890.0,0.0785]
[1735716043553,0.00706032,93895.0,93890.0,0.0786704]
[1735716048133,0.00588477,93894.0,93890.0,0.0786704]
[1735716048576,0.21889077,93894.0,93890.0,0.0786704]
[1735716049027,0.00588477,93894.0,93890.0,0.0786704]
[1735716049192,0.00588477,93894.0,93890.0,0.0756704]
[1735716049641,0.00588477,93894.0,93890.0,0.0796704]
[1735716061292,0.24635266,93894.0,93890.0,0.0796704]
[1735716062336,0.00588477,93894.0,93890.0,0.0796704]
[1735716067801,0.213008,93893.0,93890.0,0.0796704]
[1735716068030,0.426016,93893.0,93890.0,0.0796704]
[1735716068251,0.213012,93891.0,93890.0,0.0041704]
[1735716069593,0.213012,93891.0,93890.0,0.0001704]
[1735716070140,0.213012,93891.0,93890.0,0.0011704]
[1735716070609,0.213012,93891.0,93890.0,0.0031704]
[1735716070756,0.2463444,93892.0,93890.0,0.0031704]
[1735716072495,0.213012,93891.0,93890.0,0.0031704]
[1735716072782,0.00587325,93891.0,93890.0,0.0001704]
[1735716072983,0.00587325,93891.0,93890.0,0.0021704]
[1735716073796,0.00587325,93891.0,93890.0,0.0001704]
[1735716074243,0.00587325,93891.0,93890.0,0.0021704]
[1735716079736,0.00587325,93891.0,93890.0,0.0774704]
[1735716081791,0.00489259,93891.0,93890.0,0.0774704]
[1735716086454,0.00489259,93891.0,93890.0,0.2259704]
[1735716086703,0.15,93898.0,93890.0,0.2259704]
[1735716086887,0.00011816,93897.0,93891.0,0.0753]
[1735716087066,0.00489261,93897.0,93891.0,0.0753]
[1735716088502,0.00589261,93897.0,93891.0,0.0753]
[1735716089761,0.00689261,93897.0,93891.0,0.0753]
[1735716090220,0.21989161,93897.0,93891.0,0.0753]
[1735716090641,0.21889161,93897.0,93891.0,0.0753]
[1735716090855,0.21789161,93897.0,93891.0,0.0753]
[1735716091026,0.21889161,93897.0,93891.0,0.0753]
[1735716091430,0.21789161,93897.0,93891.0,0.1753]
[1735716091632,0.21789161,93897.0,93893.0,0.1]
[1735716092050,0.21789161,93897.0,93891.0,0.1753]
[1735716092251,0.21789161,93897.0,93893.0,0.1]
[1735716093664,0.21789161,93897.0,93893.0,0.104]
[1735716096123,0.21789161,93897.0,93893.0,0.1]
[1735716096485,0.21789161,93897.0,93893.0,0.102]
[1735716096690,0.43089161,93897.0,93893.0,0.102]
[1735716097759,0.24046789,93896.0,93893.0,0.102]
[1735716098186,0.00489737,93895.0,93893.0,0.102]
[1735716098624,0.00489737,93895.0,93893.0,0.1]
[1735716098924,0.00489737,93895.0,93893.0,0.102]
[1735716099315,0.00489737,93895.0,93893.0,0.1]
[1735716099542,0.00489737,93895.0,93893.0,0.103]
[1735716101885,0.213006,93894.0,93893.0,0.003]
[1735716102249,0.21790675,93894.0,93893.0,0.006]
[1735716102456,0.00490075,93894.0,93893.0,0.125]
[1735716102868,0.00490075,93894.0,93893.0,0.128]
[1735716103000,0.00490075,93894.0,93893.0,0.125]
[1735716104501,0.00490075,93894.0,93893.0,0.0775]
[1735716105121,0.00590075,93894.0,93893.0,0.0775]
[1735716105666,0.00590075,93894.0,93893.0,0.0795]
[1735716105889,0.00590075,93894.0,93893.0,0.0775]
[1735716106314,0.00489701,93894.0,93893.0,0.0775]
[1735716106528,9.537e-05,93894.0,93893.0,0.0775]
[1735716106728,0.00109537,93894.0,93893.0,0.0775]
[1735716107440,0.001,93894.0,93893.0,0.0775]
[1735716108510,0.213008,93893.0,93891.0,0.0001706]
[1735716110022,0.15,93892.0,93891.0,0.0011706]
[1735716111306,0.151,93892.0,93891.0,0.0001706]
[1735716111953,0.15,93892.0,93891.0,0.0001706]
[1735716113315,0.152,93892.0,93891.0,0.0001706]
[1735716114945,0.152,93892.0,93891.0,0.0833706]
[1735716117067,0.15,93892.0,93891.0,0.0833706]
[1735716118765,0.15,93892.0,93891.0,0.0843706]
[1735716118975,0.15,93892.0,93891.0,0.0833706]
[1735716119215,0.15,93892.0,93891.0,0.0843706]
[1735716120001,0.15,93892.0,93891.0,0.0833706]
[1735716121734,0.15,93892.0,93891.0,0.0843706]
[1735716121956,0.15,93892.0,93891.0,0.0833706]
[1735716122137,0.15,93892.0,93891.0,0.0853706]
[1735716126717,0.15,93892.0,93891.0,0.0833706]
[1735716126998,0.15,93892.0,93891.0,0.0853706]
[1735716128242,0.15,93892.0,93891.0,0.0833706]
[1735716128669,0.15,93892.0,93891.0,0.0853706]
[1735716128886,0.15,93892.0,93891.0,0.0833706]
[1735716129774,0.15,93892.0,93891.0,0.0863706]
[1735716130682,8.52e-05,93896.0,93892.0,0.1]
[1735716130916,0.15,93894.0,93893.0,0.0768]
[1735716132647,0.213003,93895.0,93893.0,0.0798]
[1735716132879,8.52e-05,93896.0,93895.0,0.1463]
[1735716133097,8.52e-05,93896.0,93895.0,0.2263]
[1735716134705,8.52e-05,93896.0,93895.0,0.2283]
[1735716134973,8.52e-05,93896.0,93895.0,0.2333]
[1735716135170,8.52e-05,93896.0,93895.0,0.2283]
[1735716135622,8.52e-05,93896.0,93895.0,0.2343]
[1735716135848,8.52e-05,93896.0,93895.0,0.2283]
[1735716136170,8.52e-05,93896.0,93895.0,0.2323]
[1735716136568,8.52e-05,93896.0,93895.0,0.2343]
[1735716137009,8.52e-05,93896.0,93895.0,0.2323]
[1735716137708,8.52e-05,93896.0,93895.0,0.2263]
[1735716138019,8.52e-05,93896.0,93895.0,0.2343]
[1735716139346,8.52e-05,93896.0,93895.0,0.2263]
[1735716139580,8.52e-05,93896.0,93895.0,0.2283]
[1735716140007,8.52e-05,93896.0,93895.0,0.2263]
[1735716140216,8.52e-05,93896.0,93895.0,0.2323]
[1735716140507,8.52e-05,93896.0,93895.0,0.2343]
[1735716140934,8.52e-05,93896.0,93895.0,0.2323]
[1735716141189,8.52e-05,93896.0,93895.0,0.2343]
[1735716141363,8.52e-05,93896.0,93895.0,0.2284706]
[1735716141717,8.52e-05,93896.0,93895.0,0.2344706]
[1735716141941,8.52e-05,93896.0,93895.0,0.2284706]
[1735716142357,8.52e-05,93896.0,93895.0,0.2324706]
[1735716142721,8.52e-05,93896.0,93895.0,0.2344706]
[1735716143287,8.52e-05,93896.0,93895.0,0.2324706]
[1735716143518,8.52e-05,93896.0,93895.0,0.2344706]
[1735716144173,8.52e-05,93896.0,93895.0,0.2324706]
[1735716144403,8.52e-05,93896.0,93895.0,0.2344706]
[1735716144601,0.21301384,93900.0,93895.0,0.2284706]
[1735716145176,0.21301384,93900.0,93895.0,0.2344706]
[1735716145794,0.21301384,93900.0,93895.0,0.2284706]
[1735716146218,0.21301384,93900.0,93895.0,0.2304706]
[1735716146622,0.21301384,93900.0,93895.0,0.2314706]
[1735716152491,2.084e-05,93900.0,93898.0,0.1]
[1735716152684,0.212967,93912.0,93899.0,0.0794]
[1735716152958,0.1500853,93911.0,93899.0,0.0794]
[1735716153612,0.1500853,93911.0,93899.0,0.23588569]
[1735716153613,8.53e-05,93900.0,93899.0,0.23588569]
[1735716153833,8.53e-05,93900.0,93899.0,0.28308569]
[1735716154557,8.53e-05,93911.0,93905.0,0.339581]
[1735716154790,8.53e-05,93911.0,93905.0,0.362581]
[1735716156235,8.53e-05,93911.0,93905.0,0.371581]
[1735716157059,8.53e-05,93911.0,93905.0,0.376581]
[1735716158720,8.53e-05,93911.0,93905.0,0.367581]
[1735716158945,8.53e-05,93911.0,93905.0,0.376581]
[1735716159164,8.53e-05,93911.0,93905.0,0.47156732]
[1735716159393,8.53e-05,93911.0,93905.0,0.57156732]
[1735716159592,8.53e-05,93911.0,93905.0,0.58056732]
[1735716159937,8.53e-05,93911.0,93905.0,0.57556732]
[1735716160205,8.53e-05,93911.0,93905.0,0.58056732]
[1735716160631,8.53e-05,93911.0,93905.0,0.57556732]
[1735716161269,8.53e-05,93911.0,93905.0,0.58056732]
[1735716161710,8.53e-05,93911.0,93905.0,0.34458632]
[1735716162362,0.212973,93909.0,93905.0,0.34458632]
[1735716162841,0.212973,93909.0,93905.0,0.33958632]
[1735716163037,8.53e-05,93911.0,93905.0,0.33958632]
[1735716163246,8.53e-05,93911.0,93905.0,0.34258632]
[1735716163708,8.53e-05,93911.0,93905.0,0.33958632]
[1735716164134,8.53e-05,93911.0,93905.0,0.33158632]
[1735716164330,8.53e-05,93911.0,93905.0,0.33658632]
[1735716164764,8.53e-05,93911.0,93905.0,0.33058632]
[1735716164965,8.53e-05,93911.0,93905.0,0.33658632]
[1735716165197,8.53e-05,93911.0,93905.0,0.33058632]
[1735716165613,8.53e-05,93911.0,93905.0,0.33658632]
[1735716166224,8.53e-05,93911.0,93905.0,0.33758632]
[1735716190755,8.53e-05,93911.0,93905.0,0.007]
[1735716190973,0.02139896,93906.0,93905.0,0.007]
[1735716191895,8.53e-05,93906.0,93905.0,0.007]
[1735716192336,8.53e-05,93911.0,93905.0,0.007]
[1735716192802,0.212975,93908.0,93905.0,0.007]
[1735716193441,0.212975,93908.0,93905.0,0.001]
[1735716194090,0.212975,93908.0,93905.0,0.003]
[1735716195207,0.212975,93908.0,93905.0,0.004]
[1735716195425,0.212975,93908.0,93905.0,0.001]
[1735716195763,0.212975,93908.0,93905.0,0.005]
[1735716196246,0.212978,93906.0,93905.0,0.005]
[1735716197079,0.21299,93901.0,93900.0,0.0001706]
[1735716197282,0.21299,93901.0,93895.0,0.0001706]
[1735716198938,0.21299,93901.0,93900.0,0.002]
[1735716200012,0.21299,93901.0,93900.0,0.0021706]
[1735716200232,0.21299,93901.0,93900.0,0.0001706]
[1735716201231,0.21299,93901.0,93900.0,0.0051706]
[1735716201770,0.21299,93901.0,93900.0,0.0041706]
[1735716202597,0.21299,93901.0,93900.0,0.0001706]
[1735716202795,0.21299,93901.0,93900.0,0.0031706]
[1735716203167,0.21299,93901.0,93900.0,0.0001706]
[1735716203390,0.21299,93901.0,93900.0,0.0031706]
[1735716203788,0.21299,93901.0,93900.0,0.0001706]
[1735716204024,0.21299,93901.0,93900.0,0.0031706]
[1735716204395,0.36299,93901.0,93900.0,0.0001706]
[1735716205916,0.36299,93901.0,93900.0,0.0031706]
[1735716206577,0.36299,93901.0,93900.0,0.0001706]
[1735716207494,0.36299,93901.0,93900.0,0.0021706]
[1735716212069,0.212958,93915.0,93900.0,0.0021706]
[1735716212279,0.212963,93913.0,93900.0,0.0021706]
[1735716212519,0.21299,93901.0,93900.0,0.0021706]
[1735716212901,0.21299,93901.0,93900.0,0.0001706]
[1735716213327,0.21399,93901.0,93900.0,0.0001706]
[1735716215787,0.36399,93901.0,93900.0,0.0001706]
[1735716248165,0.86399,93901.0,93900.0,0.0001706]
[1735716252450,0.86299,93901.0,93900.0,0.0001706]
[1735716254358,0.86399,93901.0,93900.0,0.0001706]
[1735716254941,0.86299,93901.0,93900.0,0.0001706]
[1735716255162,0.86399,93901.0,93900.0,0.0001706]
[1735716256500,0.86299,93901.0,93900.0,0.0001706]
[1735716257762,0.86399,93901.0,93900.0,0.0001706]
[1735716258405,0.86299,93901.0,93900.0,0.0001706]
[1735716259259,0.86399,93901.0,93900.0,0.0001706]
[1735716259656,0.86299,93901.0,93900.0,0.0001706]
[1735716261132,0.86499,93901.0,93900.0,0.0001706]
[1735716268174,0.56485419,93901.0,93900.0,0.0001706]
[1735716268564,0.71499,93901.0,93900.0,0.0001706]
[1735716269207,0.95547314,93901.0,93900.0,0.0001706]
[1735716271356,0.86499,93901.0,93900.0,0.0001706]
[1735716277927,0.85253997,93901.0,93900.0,0.0001706]
[1735716278919,0.86498997,93901.0,93900.0,0.0001706]
[1735716280909,0.86507527,93901.0,93900.0,0.0001706]
[1735716289353,0.86507527,93901.0,93900.0,0.0810706]
[1735716290342,0.71507527,93901.0,93900.0,0.0810706]
[1735716290592,0.50208527,93901.0,93900.0,0.1280706]
[1735716290816,0.50208527,93901.0,93900.0,0.2280706]
[1735716291267,0.50008527,93901.0,93900.0,0.2280706]
[1735716291719,0.50208527,93901.0,93900.0,0.2280706]
[1735716292409,0.50208527,93901.0,93900.0,0.2320706]
[1735716292956,0.50008527,93901.0,93900.0,0.2320706]
[1735716293166,0.50008527,93901.0,93900.0,0.22929001]
[1735716293398,0.50008527,93901.0,93900.0,0.23029001]
[1735716295318,8.53e-05,93901.0,93900.0,0.23029001]
[1735716300500,0.212969,93910.0,93900.0,0.23029001]
[1735716300718,0.212969,93910.0,93901.0,0.0766]
[1735716300937,0.21298,93906.0,93901.0,0.0766]
[1735716302410,0.21298,93906.0,93901.0,0.0776]
[1735716302628,0.42596,93906.0,93901.0,0.0776]
[1735716303534,0.212988,93902.0,93901.0,0.0776]
[1735716304186,0.212988,93902.0,93901.0,0.0766]
[1735716305590,0.212988,93902.0,93901.0,0.0786]
[1735716305979,0.212988,93902.0,93901.0,0.0766]
[1735716306408,0.212988,93902.0,93901.0,0.0796]
[1735716308694,0.212988,93902.0,93901.0,0.0766]
[1735716309209,0.212988,93902.0,93901.0,0.0806]
[1735716316782,0.212981,93905.0,93901.0,0.0806]
[1735716318987,0.212981,93905.0,93901.0,0.0776]
[1735716319205,0.212981,93905.0,93901.0,0.0766]
[1735716319429,0.212981,93905.0,93901.0,0.0786]
[1735716319841,0.425963,93905.0,93901.0,0.0786]
[1735716320310,0.425963,93905.0,93901.0,0.0766]
[1735716320554,0.426963,93905.0,93901.0,0.0766]
[1735716320952,0.425963,93905.0,93901.0,0.0766]
[1735716321089,0.425963,93905.0,93901.0,0.0796]
[1735716322237,0.425963,93905.0,93901.0,0.0806]
[1735716322651,0.425963,93905.0,93901.0,0.0776]
[1735716322986,0.425963,93905.0,93901.0,0.0796]
[1735716323412,0.425963,93905.0,93901.0,0.0806]
[1735716328683,0.425963,93905.0,93901.0,0.0807706]
[1735716331346,0.212981,93905.0,93901.0,0.0807706]
[1735716332843,8.53e-05,93906.0,93901.0,0.0807706]
[1735716333837,8.53e-05,93906.0,93901.0,0.0777706]
[1735716334157,8.53e-05,93906.0,93901.0,0.0807706]
[1735716334768,0.212981,93905.0,93901.0,0.0797706]
[1735716335832,0.212981,93905.0,93901.0,0.0807706]
[1735716336082,0.212981,93905.0,93901.0,0.0777706]
[1735716336306,0.212981,93905.0,93901.0,0.0807706]
[1735716336502,0.212981,93905.0,93901.0,0.0797706]
[1735716336717,0.45319454,93905.0,93901.0,0.0807706]
[1735716337052,0.45319454,93905.0,93901.0,0.0777706]
[1735716337524,0.45319454,93905.0,93901.0,0.0817706]
[1735716337960,0.24021354,93904.0,93901.0,0.0807706]
[1735716338434,0.24021354,93904.0,93901.0,0.0817706]
[1735716338912,0.24021354,93904.0,93901.0,0.0807706]
[1735716339354,0.24021354,93904.0,93901.0,0.0777706]
[1735716339567,0.24021354,93904.0,93901.0,0.0817706]
[1735716339758,0.24021354,93904.0,93901.0,0.0777706]
[1735716340392,0.24021354,93904.0,93901.0,0.0817706]
[1735716344069,0.212981,93905.0,93901.0,0.0817706]
[1735716344961,0.212981,93905.0,93901.0,0.0807706]
[1735716345425,0.212981,93905.0,93901.0,0.0817706]
[1735716345661,0.212981,93905.0,93901.0,0.0777706]
[1735716346105,0.212981,93905.0,93901.0,0.0817706]
[1735716348709,0.21156739,93905.0,93901.0,0.0817706]
[1735716351582,8.53e-05,93906.0,93903.0,0.1]
[1735716351795,8.53e-05,93906.0,93905.0,0.1]
[1735716352011,8.53e-05,93906.0,93905.0,0.2216]
[1735716353339,8.53e-05,93906.0,93905.0,0.2256]
[1735716354527,8.53e-05,93906.0,93905.0,0.3756]
[1735716354747,8.53e-05,93906.0,93905.0,0.3766]
[1735716357187,8.53e-05,93906.0,93905.0,0.2266]
[1735716365578,8.53e-05,93906.0,93905.0,0.2267706]
[1735716392696,8.53e-05,93906.0,93905.0,0.2257706]
[1735716393152,8.53e-05,93906.0,93905.0,0.2227706]
[1735716393376,8.53e-05,93906.0,93905.0,0.2267706]
[1735716393607,8.53e-05,93906.0,93905.0,0.2257706]
[1735716393977,8.53e-05,93906.0,93905.0,0.2267706]
[1735716394354,8.53e-05,93906.0,93905.0,0.2257706]
[1735716395346,8.53e-05,93906.0,93905.0,0.2267706]
[1735716395712,8.53e-05,93906.0,93905.0,0.2227706]
[1735716396056,8.53e-05,93906.0,93905.0,0.2267706]
[1735716396481,8.53e-05,93906.0,93905.0,0.2227706]
[1735716396678,8.53e-05,93906.0,93905.0,0.2267706]
[1735716398362,8.53e-05,93906.0,93905.0,0.33075692]
[1735716398590,8.53e-05,93906.0,93905.0,0.36386673]
[1735716399368,8.53e-05,93906.0,93905.0,0.35986673]
[1735716399587,8.53e-05,93906.0,93905.0,0.35886673]
[1735716399848,8.53e-05,93906.0,93905.0,0.36286673]
[1735716400460,8.53e-05,93906.0,93905.0,0.36386673]
[1735716400632,8.53e-05,93906.0,93905.0,0.32675692]
[1735716401039,8.53e-05,93906.0,93905.0,0.33475692]
[1735716401259,8.53e-05,93906.0,93905.0,0.33875692]
[1735716402613,8.53e-05,93906.0,93905.0,0.32975692]
[1735716402827,8.53e-05,93906.0,93905.0,0.33875692]
[1735716408702,0.05545787,93925.0,93905.0,0.33875692]
[1735716408923,0.21294,93923.0,93912.0,0.212963]
[1735716409143,0.21294,93923.0,93914.0,0.0799]
[1735716409355,0.21294,93923.0,93915.0,0.10398632]
[1735716410411,0.21343954,93923.0,93915.0,0.10398632]
[1735716410616,0.21343954,93923.0,93915.0,0.10898632]
[1735716410826,0.21343954,93923.0,93915.0,0.10998632]
[1735716414797,0.21352484,93923.0,93915.0,0.10998632]
[1735716415902,0.21352484,93923.0,93915.0,0.10398632]
[1735716416245,0.21352484,93923.0,93915.0,0.10798632]
[1735716416516,0.21352484,93923.0,93916.0,0.0799]
[1735716416717,0.21352484,93923.0,93917.0,0.10398632]
[1735716418905,0.21352484,93923.0,93917.0,0.10798632]
[1735716425822,0.15,93922.0,93918.0,0.0462]
[1735716426038,0.15,93922.0,93919.0,0.0805]
[1735716426919,0.15058484,93923.0,93919.0,0.0805]
[1735716428211,0.15058484,93923.0,93919.0,0.0815]
[1735716428617,0.15058484,93923.0,93919.0,0.0805]
[1735716429144,0.15058484,93923.0,93919.0,0.0845]
[1735716429614,0.15058484,93923.0,93919.0,0.0805]
[1735716429840,0.15058484,93923.0,93919.0,0.0845]
[1735716439272,0.15058484,93923.0,93919.0,0.0805]
[1735716439610,0.15058484,93923.0,93919.0,0.0825]
[1735716439847,0.15058484,93923.0,93919.0,0.0805]
[1735716440063,0.15058484,93923.0,93919.0,0.0845]
[1735716451797,0.15058484,93923.0,93919.0,0.0846706]
[1735716453302,0.212942,93922.0,93919.0,0.0846706]
[1735716453540,0.15,93921.0,93919.0,0.0846706]
[1735716454650,0.15058484,93923.0,93919.0,0.0816706]
[1735716454868,0.15058484,93923.0,93919.0,0.0856706]
[1735716455320,0.36352584,93923.0,93919.0,0.0846706]
[1735716455502,0.36352584,93923.0,93919.0,0.0856706]
[1735716456166,0.36352584,93923.0,93919.0,0.0816706]
[1735716457559,0.36352584,93923.0,93919.0,0.0846706]
[1735716457961,0.36352584,93923.0,93922.0,0.1]
[1735716458412,0.00058484,93923.0,93922.0,0.28188632]
[1735716459210,0.00058484,93923.0,93922.0,0.28288632]
[1735716459358,0.00058484,93923.0,93922.0,0.28688632]
[1735716459819,0.00058484,93923.0,93922.0,0.33368632]
[1735716460493,0.00058484,93923.0,93922.0,0.33268632]
[1735716460710,0.00058484,93923.0,93922.0,0.32868632]
[1735716460951,0.00058484,93923.0,93922.0,0.33468632]
[1735716461384,0.00058484,93923.0,93922.0,0.35168632]
[1735716461605,0.00058484,93923.0,93922.0,0.36468632]
[1735716463698,0.00058484,93923.0,93922.0,0.36068632]
[1735716463903,0.00058484,93923.0,93922.0,0.35168632]
[1735716464275,0.00058484,93923.0,93922.0,0.36468632]
[1735716464498,0.00058484,93923.0,93922.0,0.35568632]
[1735716464950,0.00058484,93923.0,93922.0,0.36068632]
[1735716465125,0.00058484,93923.0,93922.0,0.36468632]
[1735716466960,0.00058484,93923.0,93922.0,0.36068632]
[1735716467105,0.00058484,93923.0,93922.0,0.36468632]
[1735716467549,0.00058484,93923.0,93922.0,0.35568632]
[1735716467907,0.00058484,93923.0,93922.0,0.36468632]
[1735716468781,0.00058484,93923.0,93922.0,0.3771885]
[1735716470785,0.00058484,93923.0,93922.0,0.36468632]
[1735716476125,0.00058484,93923.0,93922.0,0.36485692]
[1735716483612,0.00058484,93923.0,93922.0,0.36085692]
[1735716483878,0.00058484,93923.0,93922.0,0.35185692]
[1735716484420,0.00058484,93923.0,93922.0,0.36585692]
[1735716484573,0.00058484,93923.0,93922.0,0.35685692]
[1735716485004,0.00058484,93923.0,93922.0,0.36585692]
[1735716485205,0.00058484,93923.0,93922.0,0.35685692]
[1735716485609,0.00058484,93923.0,93922.0,0.36389911]
[1735716485809,0.00058484,93923.0,93922.0,0.35889911]
[1735716486162,0.00058484,93923.0,93922.0,0.36289911]
[1735716486679,0.00058484,93923.0,93922.0,0.35889911]
[1735716486914,0.00058484,93923.0,93922.0,0.36389911]
[1735716490443,0.00058484,93923.0,93922.0,0.38130722]
[1735716492193,0.15,93943.0,93923.0,0.1012]
[1735716492427,4.992e-05,93929.0,93926.0,0.212932]
[1735716492674,4.992e-05,93929.0,93927.0,0.20518632]
[1735716493654,4.992e-05,93929.0,93928.0,0.235929]
[1735716493882,4.992e-05,93929.0,93928.0,0.33991532]
[1735716495718,4.992e-05,93929.0,93928.0,0.34891532]
[1735716496149,4.992e-05,93929.0,93928.0,0.35291532]
[1735716499170,0.00013522,93929.0,93928.0,0.35291532]
[1735716511220,0.00013522,93929.0,93928.0,0.35308572]
[1735716524499,0.00013522,93929.0,93928.0,0.43468572]
[1735716530336,0.00013522,93929.0,93928.0,0.57922791]
[1735716530946,0.00013522,93929.0,93928.0,0.59663181]
[1735716532104,0.00013522,93929.0,93928.0,0.57922791]
[1735716534329,0.18978634,93947.0,93929.0,0.023]
[1735716534547,0.18983625,93947.0,93934.0,0.212913]
[1735716534757,0.18983625,93947.0,93935.0,0.10398632]
[1735716536432,0.18983625,93947.0,93935.0,0.10798632]
[1735716536925,0.18992145,93947.0,93935.0,0.10798632]
[1735716537291,0.18992145,93947.0,93935.0,0.10398632]
[1735716538739,0.18992145,93947.0,93935.0,0.10598632]
[1735716539063,0.18992145,93947.0,93935.0,0.10398632]
[1735716539286,0.18992145,93947.0,93935.0,0.10498632]
[1735716539506,0.18992145,93947.0,93935.0,0.10898632]
[1735716539673,0.212888,93946.0,93935.0,0.10898632]
[1735716540680,0.212888,93946.0,93935.0,0.10798632]
[1735716542521,0.212888,93946.0,93935.0,0.10398632]
[1735716542723,0.212888,93946.0,93935.0,0.10998632]
[1735716544298,0.212888,93946.0,93936.0,0.0804]
[1735716544533,0.212888,93946.0,93937.0,0.10398632]
[1735716545207,0.01667896,93944.0,93937.0,0.10398632]
[1735716546130,0.01667896,93944.0,93937.0,0.10598632]
[1735716546451,0.01667896,93944.0,93937.0,0.10398632]
[1735716547285,0.01667896,93944.0,93937.0,0.10698632]
[1735716548347,0.212888,93946.0,93937.0,0.10698632]
[1735716548802,0.212888,93946.0,93937.0,0.10398632]
[1735716549047,0.212888,93946.0,93937.0,0.10698632]
[1735716549510,0.212888,93946.0,93937.0,0.10398632]
[1735716549723,0.212888,93946.0,93937.0,0.10598632]
[1735716551833,0.212888,93946.0,93937.0,0.10398632]
[1735716551988,0.212888,93946.0,93937.0,0.10598632]
[1735716552947,0.01667894,93944.0,93937.0,0.10598632]
[1735716553159,0.01667894,93944.0,93937.0,0.31889332]
[1735716553395,0.01667894,93944.0,93938.0,0.0804]
[1735716553616,0.01667894,93944.0,93939.0,0.10398632]
[1735716555946,0.01667894,93944.0,93939.0,0.10998632]
[1735716557345,0.01667894,93944.0,93940.0,0.0765]
[1735716557712,0.01667894,93944.0,93941.0,0.10398632]
[1735716558404,0.21302211,93947.0,93941.0,0.10398632]
[1735716559113,0.21302211,93947.0,93941.0,0.10898632]
[1735716559355,0.21302211,93947.0,93941.0,0.10398632]
[1735716559554,0.21302211,93947.0,93941.0,0.10798632]
[1735716565454,0.21302211,93947.0,93941.0,0.10498632]
[1735716565694,0.21302211,93947.0,93941.0,0.10898632]
[1735716571037,0.00013511,93947.0,93941.0,0.10898632]
[1735716572049,0.00013511,93947.0,93941.0,0.10398632]
[1735716572276,0.00013511,93947.0,93941.0,0.10498632]
[1735716572700,0.00013511,93947.0,93941.0,0.10898632]
[1735716573149,0.00013511,93947.0,93941.0,0.10498632]
[1735716574536,0.00013511,93947.0,93941.0,0.10998632]
[1735716574756,0.01681367,93947.0,93941.0,0.10998632]
[1735716575672,0.15007992,93957.0,93941.0,0.10998632]
[1735716575928,0.15012982,93957.0,93941.0,0.10998632]
[1735716576823,0.212879,93950.0,93941.0,0.10998632]
[1735716577370,0.212879,93950.0,93941.0,0.10898632]
[1735716577637,0.212879,93950.0,93941.0,0.10398632]
[1735716577830,0.212879,93950.0,93941.0,0.10498632]
[1735716578131,0.212879,93950.0,93941.0,0.10398632]
[1735716578441,0.212879,93950.0,93941.0,0.10798632]
[1735716583272,0.212879,93950.0,93941.0,0.10815692]
[1735716583770,0.2129643,93950.0,93941.0,0.10815692]
[1735716588738,0.2129643,93950.0,93941.0,0.10415692]
[1735716589104,0.2129643,93950.0,93941.0,0.10915692]
[1735716591440,0.2129643,93950.0,93942.0,0.0793]
[1735716591612,0.2129643,93950.0,93943.0,0.10398632]
[1735716594581,0.2129643,93950.0,93943.0,0.10498632]
[1735716594776,0.2129643,93950.0,93943.0,0.10898632]
[1735716596479,0.0047773,93949.0,93943.0,0.10898632]
[1735716596698,0.00537693,93949.0,93943.0,0.10898632]
[1735716597127,8.53e-05,93950.0,93943.0,0.10898632]
[1735716597354,8.53e-05,93950.0,93943.0,0.10798632]
[1735716597563,8.53e-05,93950.0,93943.0,0.10898632]
[1735716597795,8.53e-05,93950.0,93943.0,0.10498632]
[1735716598002,8.53e-05,93950.0,93943.0,0.10898632]
[1735716598422,0.00443369,93949.0,93943.0,0.10998632]
[1735716598662,0.00443369,93949.0,93943.0,0.11398632]
[1735716599303,0.00443369,93949.0,93943.0,0.10498632]
[1735716599723,0.00443369,93949.0,93943.0,0.10998632]
[1735716600157,0.00082726,93948.0,93943.0,0.10998632]
[1735716600389,0.00082726,93948.0,93943.0,0.10898632]
[1735716600885,0.00082726,93948.0,93943.0,0.10998632]
[1735716601231,0.00082726,93948.0,93943.0,0.10898632]
[1735716601526,0.00082726,93948.0,93943.0,0.10498632]
[1735716601759,0.00082726,93948.0,93943.0,0.10998632]
[1735716606813,0.00284886,93948.0,93943.0,0.10998632]
[1735716607220,0.00284886,93948.0,93943.0,0.10898632]
[1735716607632,0.00284886,93948.0,93943.0,0.10398632]
[1735716607889,0.00284886,93948.0,93943.0,0.10598632]
[1735716608051,0.00284886,93948.0,93943.0,0.10398632]
[1735716608460,0.00284886,93948.0,93944.0,0.0827]
[1735716610775,0.00284886,93948.0,93944.0,0.0877]
[1735716611489,0.00284886,93948.0,93944.0,0.0887]
[1735716617392,0.00284886,93948.0,93944.0,0.0877]
[1735716617521,0.00284886,93948.0,93944.0,0.0827]
[1735716617754,0.00444313,93947.0,93944.0,0.0857]
[1735716617959,0.00444313,93947.0,93945.0,0.09804219]
[1735716618166,0.0020216,93948.0,93945.0,0.09804219]
[1735716618458,0.21369839,93946.0,93945.0,0.09804219]
[1735716618688,0.212888,93946.0,93945.0,0.09804219]
[1735716618889,0.21369839,93946.0,93945.0,0.09804219]
[1735716619455,0.21369839,93946.0,93944.0,0.005]
[1735716619456,0.45399753,93946.0,93944.0,0.005]
[1735716619679,0.2239,93945.0,93944.0,0.005]
[1735716619903,0.836982,93945.0,93944.0,0.006]
[1735716620116,0.884182,93945.0,93944.0,0.006]
[1735716620358,0.884182,93945.0,93944.0,0.005]